bitfinex-derivatives/quotes_SOLF0:USTF0_20251223
["timestamp","ask_amount","ask_price","bid_price","bid_amount"]
[1766504953525,3.42,123.09,123.03,7.38197068]
[1766504954413,0.0596016,123.07,123.03,7.38197068]
[1766504961333,3.4796016,123.07,123.03,0.06237068]
[1766504964036,3.4796016,123.07,122.99,7.3215]
[1766504964237,2.89390434,123.08,122.96,96.0]
[1766504964238,3.42,123.03,122.96,96.0]
[1766504965138,0.06070776,123.01,122.98,7.38145221]
[1766504965837,0.06070776,123.01,122.98,0.05895221]
[1766504968043,0.06070776,123.01,122.96,78.38225221]
[1766504968738,3.48070776,123.01,122.94,7.3245]
[1766504968942,0.0587684,122.99,122.97,0.05985699]
[1766504975238,0.0587684,122.99,122.94,7.3245]
[1766504976445,0.0587684,122.99,122.95,0.05219144]
[1766504976851,0.0587684,122.99,122.95,7.37649144]
[1766504980255,5.06204159,123.04,122.95,0.05219144]
[1766504980452,3.21,123.03,122.94,1.85204159]
[1766504980654,3.21,123.01,122.94,1.85204159]
[1766504981250,0.0617349,122.99,122.96,0.05374686]
[1766504982350,0.0017349,122.99,122.96,7.37744686]
[1766504984754,0.0017349,122.99,122.97,7.323]
[1766504985156,3.21,123.07,122.99,113.8984]
[1766504985346,3.21,123.09,123.01,113.8801]
[1766504986157,0.05332821,123.06,123.04,0.05857628]
[1766504987954,3.21,123.09,123.04,0.05857628]
[1766504988860,0.05472971,123.08,123.04,0.05857628]
[1766504992168,3.21,123.07,123.01,7.3204]
[1766504993152,0.06091171,123.05,123.03,0.0592954]
[1766505000562,3.21,123.1,123.03,0.0592954]
[1766505000766,3.41,123.09,123.03,0.0592954]
[1766505001567,0.05637471,123.07,123.03,7.3784954]
[1766505001868,0.05637471,123.07,123.03,0.0592954]
[1766505003063,3.46637471,123.07,123.03,7.3786954]
[1766505005267,3.46637471,123.07,123.03,0.0592954]
[1766505006769,3.46637471,123.07,122.99,115.75044159]
[1766505006970,3.41,123.07,122.98,113.9067]
[1766505007360,3.41,123.07,122.99,113.8981]
[1766505007765,3.41,123.07,123.0,7.3211]
[1766505007971,0.06246826,123.04,123.02,0.05430477]
[1766505011968,5.26204159,123.09,123.02,0.05430477]
[1766505012164,3.41,123.09,123.02,0.05430477]
[1766505013077,5.26204159,123.11,123.02,113.92290477]
[1766505013280,5.26204159,123.11,123.03,1.85204159]
[1766505013580,3.41,123.11,123.03,1.85204159]
[1766505013970,3.41,123.11,123.06,0.06096585]
[1766505014271,0.05820527,123.08,123.06,0.06096585]
[1766505014975,3.46820527,123.08,123.06,0.00096585]
[1766505018873,0.05820527,123.08,123.06,0.00096585]
[1766505022883,3.41,123.1,123.06,0.00096585]
[1766505023989,3.47161934,123.09,123.06,0.00096585]
[1766505025877,3.41,123.06,122.99,113.8961]
[1766505026079,3.41,123.06,122.97,226.74673538]
[1766505026388,3.41,123.06,123.0,7.3213]
[1766505026986,0.05355442,123.04,123.02,0.05634133]
[1766505028474,0.05355442,123.04,122.97,209.912]
[1766505028475,3.46355442,123.04,122.98,7.3824]
[1766505028682,3.41,123.02,122.98,7.3224]
[1766505029580,0.05532055,123.01,122.99,0.05391057]
[1766505030590,0.05532055,123.01,122.99,0.00391057]
[1766505030792,3.46532055,123.01,122.99,0.00391057]
[1766505031181,3.46532055,123.01,122.95,2.84702118]
[1766505032278,3.46532055,123.01,122.97,0.05662081]
[1766505032885,5.31736214,123.01,122.97,0.05662081]
[1766505033688,3.42,123.0,122.94,7.3245]
[1766505033987,3.42,123.0,122.93,0.17]
[1766505034395,3.42,123.0,122.94,7.4948]
[1766505034694,0.05944945,122.98,122.96,0.05970106]
[1766505035393,3.42,123.02,122.96,0.16970106]
[1766505036399,0.05402884,123.0,122.96,0.16970106]
[1766505036595,0.05402884,123.0,122.96,7.49340106]
[1766505037799,3.42,123.04,122.98,0.11]
[1766505038502,3.42,123.06,122.99,7.3817]
[1766505038796,0.0527081,123.04,123.01,0.06080945]
[1766505042391,3.4727081,123.04,123.01,0.06080945]
[1766505042696,0.0527081,123.04,123.01,0.06080945]
[1766505061411,0.0527081,123.04,123.01,7.44160945]
[1766505061612,3.35,123.07,123.01,7.44160945]
[1766505062506,0.06202983,123.05,123.02,7.38]
[1766505062712,3.35,123.09,123.03,0.06]
[1766505063006,3.35,123.09,123.0,113.8871]
[1766505063206,3.35,123.09,123.02,7.3202]
[1766505063598,3.35,123.06,122.99,113.9436]
[1766505063808,3.35,123.06,123.0,0.05]
[1766505064411,3.35,123.06,123.02,7.3202]
[1766505064712,0.05991512,123.05,123.03,0.06051597]
[1766505066511,3.35,123.08,123.03,0.06051597]
[1766505067518,0.0555551,123.07,123.03,0.11051597]
[1766505069708,0.0555551,123.07,123.03,7.42991597]
[1766505069926,3.35,123.12,123.04,0.05]
[1766505070112,3.35,123.12,123.06,7.3177]
[1766505070418,3.35,123.14,123.05,116.73056789]
[1766505071019,0.05396647,123.11,123.08,0.06231914]
[1766505071709,3.40396647,123.11,123.08,0.06231914]
[1766505073105,3.40396647,123.11,123.05,7.3181]
[1766505074126,3.40396647,123.11,123.07,0.06154096]
[1766505075720,0.05396647,123.11,123.07,0.12154096]
[1766505078628,0.05396647,123.11,123.07,0.06154096]
[1766505079714,3.40396647,123.11,123.07,0.06154096]
[1766505079916,3.40396647,123.11,123.07,0.00154096]
[1766505086314,3.35,123.09,123.07,0.00154096]
[1766505086517,3.35,123.09,123.03,7.3192]
[1766505087527,3.40382825,123.07,123.05,0.00086151]
[1766505088128,3.40382825,123.07,123.02,3.77106151]
[1766505088432,3.35,123.07,123.02,3.77106151]
[1766505089231,0.06088678,123.06,123.03,0.05809674]
[1766505091334,3.43088678,123.06,123.0,7.3209]
[1766505091527,3.37,123.05,122.98,95.98]
[1766505091730,6.26236789,123.04,122.98,95.98]
[1766505092026,3.37,123.03,122.98,103.3021]
[1766505092333,0.05141855,123.02,122.99,0.05164858]
[1766505094634,0.05141855,123.02,122.99,7.37354858]
[1766505096034,7.3165,123.09,123.0,7.3211]
[1766505096229,2.89236789,123.08,123.0,3.39]
[1766505096939,0.05672816,123.05,123.03,0.06039003]
[1766505101143,3.54,123.07,123.03,0.06039003]
[1766505101342,5.39010756,123.07,123.03,0.06039003]
[1766505102143,0.05643252,123.06,123.03,0.06039003]
[1766505107657,3.59643252,123.06,123.03,0.00039003]
[1766505107955,5.39010756,123.05,122.99,3.39]
[1766505108748,0.05222103,123.03,123.01,0.0565481]
[1766505109554,0.05222103,123.03,122.99,3.39]
[1766505110655,0.05222103,123.03,123.0,0.05261732]
[1766505115859,0.05222103,123.03,122.97,3.39]
[1766505116062,3.59222103,123.03,122.97,3.39]
[1766505116758,3.59222103,123.03,122.99,0.05245122]
[1766505118458,3.54,123.01,122.95,10.7139]
[1766505119358,0.05595203,122.99,122.97,0.05841893]
[1766505119560,484.27116499,123.34,122.97,0.05841893]
[1766505119561,3.54,123.18,123.09,3.39]
[1766505119867,3.54,123.17,123.09,5.24010756]
[1766505120162,1.85010756,123.19,123.06,113.8288]
[1766505120163,3.54,123.2,123.13,5.24010756]
[1766505120466,0.06103428,123.18,123.15,0.05486304]
[1766505121164,3.52,123.22,123.15,3.29486304]
[1766505121363,3.52,123.22,123.15,10.552]
[1766505121572,1.85010756,123.26,123.16,3.24]
[1766505121764,3.52,123.25,123.16,3.24]
[1766505122161,3.52,123.24,123.19,0.05267748]
[1766505122358,3.52,123.21,123.14,10.5528]
[1766505123362,0.05972336,123.19,123.16,0.0577129]
[1766505125372,3.57972336,123.19,123.12,95.98]
[1766505125563,3.57972336,123.19,123.11,3.24]
[1766505125766,3.52,123.19,123.11,10.5546]
[1766505126160,3.52,123.19,123.14,0.0568185]
[1766505126366,0.06173117,123.16,123.14,0.0568185]
[1766505132774,0.00173117,123.16,123.14,3.2968185]
[1766505134279,0.00173117,123.16,123.14,10.6097185]
[1766505134473,3.52,123.23,123.15,3.24]
[1766505134672,3.52,123.23,123.16,3.24]
[1766505135572,0.05600561,123.21,123.18,0.05320358]
[1766505137469,3.52,123.23,123.18,0.05320358]
[1766505138580,0.05495549,123.22,123.18,0.05320358]
[1766505139294,3.57495549,123.22,123.18,0.05320358]
[1766505139584,3.57495549,123.22,123.11,3.24]
[1766505139778,3.57495549,123.22,123.12,3.24]
[1766505139779,3.52,123.21,123.12,3.24]
[1766505140370,0.0618013,123.18,123.15,0.05548546]
[1766505142093,3.5818013,123.18,123.12,3.24]
[1766505143083,3.5818013,123.18,123.14,0.05556353]
[1766505143393,0.0618013,123.18,123.14,0.05556353]
[1766505146783,3.5818013,123.18,123.14,0.05556353]
[1766505147292,0.0618013,123.18,123.14,3.29556353]
[1766505147499,1.84607203,123.26,123.16,3.24]
[1766505147793,3.52,123.24,123.16,3.24]
[1766505148387,3.52,123.22,123.14,3.24]
[1766505148587,3.57207664,123.21,123.14,3.24]
[1766505148991,3.57207664,123.21,123.15,3.24]
[1766505149187,3.52,123.21,123.15,3.24]
[1766505149588,3.52,123.21,123.17,0.05232216]
[1766505149589,0.05286886,123.19,123.17,0.05232216]
[1766505150594,0.05286886,123.19,123.17,0.00232216]
[1766505160898,3.52,123.21,123.17,0.00232216]
[1766505162002,0.06160965,123.2,123.17,0.00232216]
[1766505162297,3.42160965,123.2,123.11,117.1822]
[1766505162503,3.36,123.2,123.11,3.4]
[1766505163293,0.05558466,123.17,123.14,0.05578115]
[1766505163696,3.41558466,123.17,123.14,0.05578115]
[1766505164001,3.41558466,123.17,123.09,28.3039376]
[1766505164199,3.36,123.16,123.09,3.4]
[1766505164394,3.36,123.16,123.07,99.34]
[1766505164804,0.06226865,123.13,123.1,0.05392856]
[1766505167399,0.00226865,123.13,123.1,3.45392856]
[1766505167599,0.00226865,123.13,123.1,10.76912856]
[1766505168004,0.00226865,123.13,123.1,7.36912856]
[1766505168200,0.00226865,123.13,123.1,0.05392856]
[1766505170296,0.00226865,123.13,123.1,3.45392856]
[1766505170503,3.36,123.21,123.12,3.4]
[1766505171504,0.05293151,123.18,123.15,0.06001929]
[1766505172009,3.41293151,123.18,123.09,117.2017]
[1766505172210,3.36,123.18,123.09,117.2017]
[1766505172802,3.36,123.18,123.11,7.3146]
[1766505172997,3.36,123.18,123.13,0.05769727]
[1766505173307,0.05340441,123.16,123.13,0.05769727]
[1766505174603,113.6918,123.22,123.15,3.4]
[1766505174604,3.36,123.22,123.15,3.4]
[1766505175008,3.36,123.25,123.15,3.4]
[1766505175400,3.36,123.25,123.16,3.4]
[1766505175608,0.05431795,123.22,123.19,0.05283781]
[1766505181115,3.45431795,123.22,123.14,95.88]
[1766505181319,3.4,123.22,123.14,95.88]
[1766505182017,3.4,123.2,123.09,117.2061]
[1766505182206,3.4,123.18,123.1,3.4]
[1766505182514,3.4,123.21,123.13,3.45162335]
[1766505182712,3.4,123.21,123.13,3.4]
[1766505182923,3.4,123.21,123.13,10.7135]
[1766505183505,0.06095861,123.18,123.16,0.05718193]
[1766505183702,0.06095861,123.18,123.11,10.7147]
[1766505183903,3.46095861,123.18,123.11,3.4]
[1766505184212,0.06095861,123.18,123.11,3.4]
[1766505184410,0.06095861,123.18,123.13,10.7136]
[1766505184610,3.4,123.2,123.13,10.7136]
[1766505184819,0.06104465,123.18,123.15,0.06039826]
[1766505192732,3.4,123.2,123.15,0.06039826]
[1766505193023,3.4,123.22,123.15,0.06039826]
[1766505193223,3.4,123.22,123.14,10.7129]
[1766505193821,3.4,123.22,123.17,0.06126984]
[1766505193822,0.05494588,123.19,123.17,0.06126984]
[1766505195728,3.4,123.22,123.17,0.06126984]
[1766505196733,0.06163324,123.21,123.17,0.06126984]
[1766505197531,0.06163324,123.21,123.17,7.37246984]
[1766505197936,0.06163324,123.21,123.17,0.06126984]
[1766505198431,0.06163324,123.21,123.17,3.46126984]
[1766505198620,0.06163324,123.21,123.18,7.3106]
[1766505199330,3.4,123.24,123.18,7.3106]
[1766505199723,3.4,123.24,123.18,10.7106]
[1766505200232,0.05510492,123.22,123.2,0.05698039]
[1766505205937,3.4,123.25,123.2,0.05698039]
[1766505207034,0.05313462,123.24,123.2,0.05698039]
[1766505209037,0.05313462,123.24,123.2,10.76638039]
[1766505211837,3.27313462,123.24,123.2,7.36638039]
[1766505212043,6.10369062,123.22,123.16,10.6716]
[1766505212952,0.05248712,123.2,123.18,0.05330249]
[1766505213544,0.00248712,123.2,123.18,0.05330249]
[1766505216640,0.00248712,123.2,123.18,3.28330249]
[1766505217033,0.00248712,123.2,123.18,10.59390249]
[1766505217948,0.00248712,123.2,123.19,3.23]
[1766505219846,0.00248712,123.2,123.19,4.85]
[1766505223152,5.15401389,123.27,123.21,3.23]
[1766505223549,121.11986534,123.36,123.21,3.23]
[1766505223855,5.15401389,123.32,123.24,3.23]
[1766505224245,0.05738899,123.29,123.27,0.05145407]
[1766505224749,5.15401389,123.32,123.27,0.05145407]
[1766505225149,3.31,123.32,123.27,0.05145407]
[1766505225555,0.05387607,123.31,123.27,0.05145407]
[1766505227454,0.05387607,123.31,123.27,7.35665407]
[1766505227759,3.31,123.32,123.27,7.35665407]
[1766505227760,3.31,123.32,123.27,10.58665407]
[1766505228049,3.31,123.32,123.27,7.35665407]
[1766505228643,0.05979368,123.31,123.27,7.35665407]
[1766505229645,0.05979368,123.31,123.27,0.05145407]
[1766505230947,0.05979368,123.31,123.27,3.28145407]
[1766505231345,3.31,123.35,123.27,3.28145407]
[1766505231548,5.15401389,123.34,123.27,10.5352]
[1766505231748,5.15401389,123.34,123.28,3.23]
[1766505232244,5.15401389,123.34,123.3,0.06087081]
[1766505232451,0.05395513,123.32,123.3,0.06087081]
[1766505239865,3.36395513,123.32,123.3,0.00087081]
[1766505241064,3.36395513,123.32,123.26,3.23]
[1766505241966,3.36395513,123.32,123.28,0.05829715]
[1766505243471,3.36395513,123.32,123.24,106.4467]
[1766505243674,5.26401389,123.31,123.24,106.4467]
[1766505243974,5.26401389,123.31,123.25,3.34]
[1766505244165,5.26401389,123.31,123.25,10.6465]
[1766505244567,0.0623547,123.29,123.27,0.05527848]
[1766505245165,3.42,123.28,123.23,7.3072]
[1766505245372,3.42,123.28,123.21,3.34]
[1766505245865,1.84401389,123.27,123.21,3.34]
[1766505246061,0.05802654,123.25,123.23,0.05574643]
[1766505247171,0.05802654,123.25,123.2,3.34]
[1766505247375,0.05802654,123.25,123.21,3.34]
[1766505247873,3.42,123.28,123.21,3.34]
[1766505248267,3.42,123.28,123.22,10.6482]
[1766505248462,3.42,123.3,123.23,3.34]
[1766505248665,0.05356206,123.28,123.25,0.06040097]
[1766505260093,3.47356206,123.28,123.25,0.00040097]
[1766505260488,5.26401389,123.27,123.22,7.3078]
[1766505260883,0.05356206,123.28,123.23,7.3076]
[1766505261093,5.26401389,123.29,123.23,7.3076]
[1766505261295,5.26401389,123.29,123.22,3.34]
[1766505261491,5.26401389,123.29,123.24,0.06084465]
[1766505261492,0.05840559,123.27,123.24,0.06084465]
[1766505261880,1.84401389,123.32,123.24,3.40084465]
[1766505262082,1.84401389,123.32,123.24,3.34]
[1766505262688,1.84401389,123.32,123.25,7.3063]
[1766505262995,0.05677731,123.3,123.27,0.05859365]
[1766505267188,5.2307912,123.3,123.25,7.3063]
[1766505268291,5.2307912,123.3,123.26,0.05523973]
[1766505272195,3.38677731,123.3,123.26,0.05523973]
[1766505272392,1.84401389,123.29,123.26,0.05523973]
[1766505273503,5.2307912,123.3,123.26,0.05523973]
[1766505273702,0.05677731,123.3,123.26,0.05523973]
[1766505274097,3.32677731,123.3,123.26,0.05523973]
[1766505277203,0.05677731,123.3,123.26,10.87093973]
[1766505277592,0.05677731,123.3,123.26,7.36093973]
[1766505277799,3.32677731,123.3,123.26,7.36093973]
[1766505279311,3.32677731,123.3,123.26,0.05523973]
[1766505280810,0.05677731,123.3,123.26,0.05523973]
[1766505281806,0.05677731,123.3,123.26,7.36103973]
[1766505285102,3.32677731,123.3,123.24,7.3066]
[1766505285403,6.09927935,123.29,123.22,3.34]
[1766505286105,0.06062719,123.27,123.24,0.05264049]
[1766505288293,3.28062719,123.27,123.24,0.05264049]
[1766505289001,0.06062719,123.27,123.24,0.05264049]
[1766505301317,3.28062719,123.27,123.24,0.00264049]
[1766505303006,3.28062719,123.27,123.2,10.7394]
[1766505303209,3.17,123.26,123.2,10.7394]
[1766505304110,0.05886553,123.24,123.22,0.05412187]
[1766505305112,3.22886553,123.24,123.18,10.7405]
[1766505305315,3.17,123.24,123.18,7.3105]
[1766505305619,3.17,123.24,123.17,7.3112]
[1766505305809,3.17,123.24,123.17,10.7412]
[1766505306216,0.05785626,123.22,123.19,0.06182219]
[1766505308514,0.05785626,123.22,123.19,3.49182219]
[1766505308718,3.18,123.28,123.2,3.43]
[1766505309121,3.18,123.28,123.22,10.7381]
[1766505309323,3.18,123.28,123.22,3.43]
[1766505309725,0.05611197,123.26,123.24,0.05489791]
[1766505312726,0.05611197,123.26,123.24,7.36189791]
[1766505313122,0.05611197,123.26,123.24,0.05489791]
[1766505315630,3.18,123.3,123.24,3.48489791]
[1766505315926,3.18,123.3,123.24,0.05489791]
[1766505316728,0.0609163,123.28,123.24,0.05489791]
[1766505318726,0.0609163,123.28,123.25,3.43]
[1766505320131,0.0009163,123.28,123.25,3.43]
[1766505321929,0.0009163,123.28,123.26,10.7358]
[1766505326230,0.0009163,123.28,123.24,10.79179791]
[1766505326430,0.0009163,123.28,123.24,7.36179791]
[1766505326838,3.3009163,123.28,123.24,7.36179791]
[1766505328247,3.3009163,123.28,123.24,0.05489791]
[1766505340256,0.0009163,123.28,123.24,3.48489791]
[1766505340558,0.0009163,123.28,123.27,3.43]
[1766505340758,3.22,123.34,123.27,3.43]
[1766505341657,0.06225432,123.32,123.29,0.05400487]
[1766505347163,3.28225432,123.32,123.29,0.05400487]
[1766505347364,3.28225432,123.32,123.23,3.43]
[1766505347564,3.22,123.31,123.23,3.43]
[1766505348470,3.22,123.33,123.26,3.48641185]
[1766505348670,3.22,123.33,123.26,3.43]
[1766505349466,0.06031011,123.31,123.28,0.05461588]
[1766505355075,3.28031011,123.31,123.26,3.43]
[1766505355970,3.28031011,123.31,123.24,3.43]
[1766505356170,3.28031011,123.31,123.26,0.06036065]
[1766505356378,3.18,123.29,123.22,3.43]
[1766505357474,0.05818271,123.27,123.24,0.06145039]
[1766505365781,5.02173394,123.26,123.2,95.82]
[1766505366173,5.02173394,123.26,123.2,99.22]
[1766505366785,0.05929283,123.24,123.22,0.06145291]
[1766505368071,3.18,123.28,123.22,3.46145291]
[1766505369096,0.0570703,123.26,123.22,3.46145291]
[1766505373178,0.0570703,123.26,123.22,10.76935291]
[1766505376680,1.84173394,123.29,123.23,3.4]
[1766505376883,1.84173394,123.29,123.24,3.4]
[1766505377176,3.21,123.28,123.23,7.3076]
[1766505377782,0.05992279,123.27,123.24,0.0599243]
[1766505378088,5.11165673,123.27,123.24,0.0599243]
[1766505378289,5.11165673,123.27,123.21,7.3084]
[1766505378489,5.11165673,123.27,123.21,10.7084]
[1766505379189,5.11165673,123.27,123.23,0.062238]
[1766505383889,0.05992279,123.27,123.23,3.462238]
[1766505385592,0.05992279,123.27,123.23,10.769938]
[1766505386889,0.05992279,123.27,123.23,7.369938]
[1766505387090,1.84173394,123.3,123.25,3.4]
[1766505387299,3.18,123.31,123.25,3.4]
[1766505388190,0.05718219,123.29,123.27,0.05135939]
[1766505407325,3.27718219,123.29,123.27,0.00135939]
[1766505408422,3.19,123.28,123.22,3.35]
[1766505409329,0.05712992,123.26,123.24,0.06050757]
[1766505412535,3.18712992,123.26,123.17,14.98269379]
[1766505412720,3.13,123.26,123.18,3.35]
[1766505413531,0.0575626,123.23,123.21,0.0526279]
[1766505414330,0.0575626,123.23,123.18,3.35]
[1766505415434,0.0575626,123.23,123.19,3.4013321]
[1766505425339,0.0575626,123.23,123.19,0.0513321]
[1766505425641,3.1875626,123.23,123.19,0.0513321]
[1766505434547,3.08,123.21,123.15,3.34]
[1766505435447,0.05971919,123.19,123.17,0.0540798]
[1766505436941,3.14,123.25,123.17,3.3940798]
[1766505437143,3.14,123.26,123.17,3.34]
[1766505438146,0.05509991,123.23,123.2,0.05157681]
[1766505438947,0.05509991,123.23,123.2,3.39157681]
[1766505439135,3.14,123.26,123.2,3.39157681]
[1766505440143,0.05521966,123.24,123.2,3.39157681]
[1766505441748,3.2,123.28,123.21,3.34]
[1766505442548,3.2,123.28,123.23,0.05406459]
[1766505442849,0.05960617,123.26,123.23,0.05406459]
[1766505443246,3.30960617,123.26,123.23,0.00406459]
[1766505447655,0.05960617,123.26,123.23,0.00406459]
[1766505448455,0.05960617,123.26,123.23,3.34406459]
[1766505451650,0.05960617,123.26,123.23,0.00406459]
[1766505455854,3.2,123.29,123.23,3.54406459]
[1766505456963,0.05970868,123.27,123.23,3.54406459]
[1766505460363,3.25970868,123.27,123.23,0.00406459]
[1766505461359,0.05970868,123.27,123.23,3.54406459]
[1766505461562,0.05970868,123.27,123.23,10.85176459]
[1766505462562,3.26,123.31,123.25,3.54]
[1766505463467,0.05767899,123.29,123.27,0.05906101]
[1766505465664,3.31767899,123.29,123.23,10.8475]
[1766505466670,3.31767899,123.29,123.25,0.05745103]
[1766505467065,0.05767899,123.29,123.25,3.59745103]
[1766505470872,5.16259585,123.33,123.26,3.54]
[1766505471570,5.16259585,123.33,123.27,3.54]
[1766505471769,0.05927105,123.31,123.29,0.05581771]
[1766505473667,1.9018669,123.31,123.29,0.05581771]
[1766505473874,1.9018669,123.31,123.27,3.54]
[1766505474775,1.9018669,123.31,123.28,0.06004991]
[1766505478368,9.2050669,123.31,123.28,0.06004991]
[1766505479663,1.9018669,123.31,123.28,0.06004991]
[1766505480676,0.05927105,123.31,123.28,0.06004991]
[1766505484877,10.6211,123.35,123.28,3.55004991]
[1766505485172,3.32,123.33,123.28,3.55004991]
[1766505485383,5.16259585,123.32,123.28,0.06004991]
[1766505485977,0.06121915,123.31,123.28,0.06004991]
[1766505490878,1.903815,123.31,123.28,0.06004991]
[1766505492287,1.84259585,123.29,123.23,7.3074]
[1766505492481,1.84259585,123.29,123.24,3.49]
[1766505493487,0.05518446,123.28,123.25,0.05925625]
[1766505494087,3.32,123.32,123.25,3.54925625]
[1766505494294,1.84259585,123.31,123.25,3.49]
[1766505495288,0.05251942,123.29,123.27,0.05339213]
[1766505498683,1.84259585,123.31,123.27,10.84869213]
[1766505499580,0.05806105,123.3,123.27,10.84869213]
[1766505501588,3.32,123.32,123.27,10.84869213]
[1766505502789,0.00265647,123.31,123.29,3.49]
[1766505502987,3.32,123.34,123.29,3.49]
[1766505503584,3.32,123.34,123.29,10.7941]
[1766505503888,0.05582465,123.33,123.3,0.05487659]
[1766505504690,0.05582465,123.33,123.3,7.35837659]
[1766505505081,0.05582465,123.33,123.3,3.54487659]
[1766505505281,1.84259585,123.35,123.31,7.303]
[1766505505886,3.32,123.36,123.31,10.793]
[1766505506291,0.05207949,123.35,123.31,10.793]
[1766505509995,0.05207949,123.35,123.32,3.49]
[1766505510499,0.00207949,123.35,123.33,3.49]
[1766505511498,0.00207949,123.35,123.33,3.54171434]
[1766505511796,0.00207949,123.35,123.33,10.84331434]
[1766505512198,0.00207949,123.35,123.34,3.5]
[1766505513193,0.00207949,123.35,123.34,5.12]
[1766505513591,0.00207949,123.35,123.34,3.5]
[1766505515200,0.00207949,123.35,123.33,0.05171434]
[1766505515602,0.00207949,123.35,123.3,3.37]
[1766505515791,5.14259585,123.36,123.3,3.37]
[1766505515988,1.84259585,123.35,123.3,3.37]
[1766505516804,0.05587643,123.34,123.31,0.05173364]
[1766505518705,5.14259585,123.38,123.31,3.42173364]
[1766505519598,0.05305651,123.36,123.31,10.72453364]
[1766505520700,0.05305651,123.36,123.32,3.37]
[1766505521400,0.05305651,123.36,123.31,7.35453364]
[1766505521998,1.89565236,123.36,123.31,0.05173364]
[1766505522199,5.19565236,123.36,123.31,0.05173364]
[1766505523500,3.35305651,123.36,123.31,0.05173364]
[1766505523807,5.19565236,123.36,123.31,0.05173364]
[1766505525403,0.05305651,123.36,123.31,3.42173364]
[1766505527009,3.35305651,123.36,123.31,3.42173364]
[1766505527711,1.84259585,123.35,123.31,3.42173364]
[1766505527911,3.35305651,123.36,123.31,3.42173364]
[1766505534517,0.05305651,123.36,123.31,10.72463364]
[1766505534718,0.05305651,123.36,123.32,3.37]
[1766505535012,0.00305651,123.36,123.32,10.6724]
[1766505535214,0.00305651,123.36,123.33,3.37]
[1766505536621,0.00305651,123.36,123.34,10.6709]
[1766505536919,0.00305651,123.36,123.34,10.73224021]
[1766505541017,0.00305651,123.36,123.34,3.43134021]
[1766505541221,0.00305651,123.36,123.34,0.06134021]
[1766505543122,0.00305651,123.36,123.34,3.46134021]
[1766505543726,0.00305651,123.36,123.34,0.06134021]
[1766505545217,0.00305651,123.36,123.34,0.00134021]
[1766505545423,6.38993782,123.36,123.29,3.4]
[1766505545724,6.38688131,123.36,123.29,3.4]
[1766505546325,0.05757466,123.34,123.31,0.06044526]
[1766505549442,3.56757466,123.34,123.31,0.06044526]
[1766505551645,0.05757466,123.34,123.31,3.46044526]
[1766505552845,0.05757466,123.34,123.31,0.06044526]
[1766505559649,3.51,123.38,123.31,3.46044526]
[1766505559850,6.38688131,123.37,123.31,3.4]
[1766505560447,6.38688131,123.39,123.32,3.4]
[1766505560646,6.38688131,123.39,123.34,0.05269032]
[1766505560850,0.05886374,123.37,123.34,0.05269032]
[1766505564251,3.51,123.4,123.34,3.45269032]
[1766505564446,3.51,123.4,123.34,3.4]
[1766505565357,0.05165613,123.38,123.36,0.06231723]
[1766505571760,0.05165613,123.38,123.36,0.00231723]
[1766505586767,3.25165613,123.38,123.36,0.00231723]
[1766505586968,3.25165613,123.38,123.32,7.3019]
[1766505587270,3.2,123.38,123.32,7.3019]
[1766505587965,0.0598213,123.36,123.34,0.05126432]
[1766505589371,3.2,123.4,123.34,0.05126432]
[1766505589571,3.2,123.4,123.33,3.35]
[1766505589958,1.8405852,123.39,123.33,3.35]
[1766505590164,0.05149334,123.37,123.35,0.05732421]
[1766505590967,0.05149334,123.37,123.28,14.95357428]
[1766505590968,3.2,123.35,123.28,3.35]
[1766505591270,1.8405852,123.38,123.29,3.35]
[1766505591967,0.05272192,123.35,123.32,0.06081136]
[1766505594563,1.8405852,123.34,123.32,0.00081136]
[1766505594965,1.8405852,123.34,123.29,3.35]
[1766505595574,0.05272192,123.35,123.29,10.6541]
[1766505595763,1.8405852,123.34,123.29,10.6541]
[1766505596070,1.8405852,123.34,123.3,0.05110726]
[1766505600469,0.05272192,123.35,123.3,0.05110726]
[1766505602377,7.3013,123.34,123.3,0.00110726]
[1766505602763,0.05272192,123.35,123.3,0.00110726]